fUSD/lending_fUSD_20240403
["ID","MTS","AMOUNT","RATE_DAILY","PERIOD"]
[321405243,1712147438914,-600.5,0.0002488,2]
[321405244,1712147438946,-262.5606962,0.0002488,2]
[321405245,1712147438957,-395.49444731,0.0002488,2]
[321405246,1712147438969,-345.61232579,0.0002488,2]
[321405247,1712147438998,-384.2290936,0.0002488,2]
[321405248,1712147439010,-808.75030777,0.0002488,2]
[321405249,1712147439021,-741.27723955,0.0002488,2]
[321405250,1712147439033,-420.8888349,0.0002488,2]
[321405251,1712147439044,-324.95664198,0.0002488,2]
[321405252,1712147439056,-454.09389728,0.0002488,2]
[321405261,1712147440684,-3880.75849653,0.0002488,2]
[321405262,1712147440696,-1542.30176687,0.0002488,2]
[321405263,1712147440705,-491.2225238,0.00024887,2]
[321405264,1712147440714,-536.95067776,0.00024889,2]
[321405265,1712147440726,-331.42,0.00024889,2]
[321405266,1712147440740,-383.88154546,0.00024889,2]
[321405267,1712147440817,-7663.54807898,0.00024889,2]
[321405268,1712147440827,-170.45,0.0002489,2]
[321405269,1712147440836,-2984.45602076,0.00024898,2]
[321405270,1712147440846,-162.5559466,0.00024899,2]
[321405271,1712147440856,-212.0,0.000249,2]
[321405272,1712147440865,-1057.25108357,0.000249,2]
[321405273,1712147440875,-23866.84061303,0.000249,2]
[321405274,1712147440886,-688.4076777,0.000249,2]
[321405285,1712147443453,-150.79765476,0.00024871,2]
[321405286,1712147443464,-144.06387362,0.000249,2]
[321405287,1712147443570,-18878.0,0.000249,2]
[321405288,1712147443809,-2164.17442243,0.000249,2]
[321405289,1712147443908,-291.60276467,0.000249,2]
[321405294,1712147446653,-89999.74901995,0.000249,2]
[321405295,1712147446769,-578.17605126,0.00021347,2]
[321405296,1712147446780,-4609.64450296,0.000249,2]
[321405297,1712147447244,-610.47466973,0.000249,2]
[321405298,1712147447256,-162688.08047439,0.000249,2]
[321405299,1712147447266,-164.23830185,0.000249,2]
[321405300,1712147447276,-152.1473519,0.000249,2]
[321405301,1712147447286,-1262.40780415,0.000249,2]
[321405302,1712147447295,-491.2225238,0.000249,2]
[321405303,1712147447305,-8915.8003022,0.000249,2]
[321405304,1712147447314,-543.61107636,0.000249,2]
[321405305,1712147447323,-2427.0,0.0002498,2]
[321405306,1712147447333,-960.0,0.0002498,2]
[321405307,1712147447342,-457.0,0.0002498,2]
[321405308,1712147447352,-1380.0,0.0002498,2]
[321405309,1712147447361,-22302.034,0.0002498,2]
[321405310,1712147447370,-170.45,0.0002499,2]
[321405311,1712147447379,-170.45,0.0002499,2]
[321405312,1712147447389,-170.45,0.0002499,2]
[321405313,1712147447400,-312.20472604,0.00024998,2]
[321405314,1712147447409,-193.57542793,0.00024998,2]
[321405315,1712147447418,-80367.36057352,0.00024998,2]
[321405316,1712147447428,-533.7830088,0.00024999,2]
[321405317,1712147447438,-769.79879838,0.00024999,2]
[321405318,1712147447447,-50000.0,0.00025,2]
[321405319,1712147447456,-31443.25466452,0.00025,2]
[321405342,1712147676576,-300.0,0.0002247,2]
[321405344,1712147971572,-389.80155017,0.00021904,2]
[321405345,1712147971594,-292.91,0.00021905,2]
[321405346,1712147971616,-1317.28844983,0.0002247,2]
[321405347,1712147972271,-1476.25992095,0.0002247,2]
[321405348,1712147972292,-318.46440352,0.0002247,2]
[321405349,1712147972314,-205.27567553,0.0002398,2]
[321405350,1712147972757,-470.46432447,0.0002398,2]
[321405351,1712147972779,-706.58,0.0002398,2]
[321405352,1712147972805,-398.74,0.0002398,2]
[321405353,1712147972829,-424.21567553,0.0002398,2]
[321405354,1712147981790,-575.78432447,0.0002398,2]
[321405355,1712147989476,318.46440352,0.0002247,2]
[321405356,1712148004638,-292.91,0.00024169,2]
[321405357,1712148004661,-167.0,0.00024699,2]
[321405358,1712148004683,-420.82511,0.0002475,2]
[321405359,1712148004886,-1119.26489,0.000248,2]
[321405360,1712148005231,-2000.0,0.000248,2]
[321405361,1712148005472,221.97258786,0.0002247,2]
[321405362,1712148005972,-2000.0,0.000248,2]
[321405363,1712148007676,236.85868415,0.0002247,2]
[321405364,1712148014552,-2000.0,0.0002247,2]
[321405365,1712148015117,-2000.0,0.0002247,2]
[321405366,1712148015717,-1763.14131585,0.0002247,2]
[321405367,1712148015748,-236.85868415,0.000248,2]
[321405368,1712148028642,-2000.0,0.000248,2]
[321405369,1712148055336,-2000.0,0.0002247,2]
[321405370,1712148055966,-2000.0,0.0002247,2]
[321405371,1712148056577,-2000.0,0.0002247,2]
[321405372,1712148057215,-389.80155017,0.00024799,2]
[321405373,1712148057238,-1610.19844983,0.000248,2]
[321405374,1712148058112,-2000.0,0.000248,2]
[321405375,1712148059350,-2000.0,0.000248,2]
[321405376,1712148059925,-2000.0,0.000248,2]
[321405377,1712148060497,-2000.0,0.000248,2]
[321405378,1712148061173,-2000.0,0.000248,2]
[321405379,1712148061813,-2000.0,0.000248,2]
[321405380,1712148079168,-2000.0,0.000248,2]
[321405381,1712148079731,-2000.0,0.000248,2]
[321405382,1712148080349,-2000.0,0.000248,2]
[321405383,1712148081120,-2000.0,0.000248,2]
[321405384,1712148116270,-2000.0,0.000248,2]
[321405385,1712148116882,-2000.0,0.000248,2]
[321405386,1712148117513,-51.30767602,0.000248,2]
[321405387,1712148117535,-500.0,0.000248,2]
[321405388,1712148117556,-1448.69232398,0.000248,2]
[321405389,1712148118097,-2000.0,0.000248,2]
[321405390,1712148118832,-2000.0,0.000248,2]
[321405391,1712148120639,-2000.0,0.000248,2]
[321405392,1712148121236,-2000.0,0.000248,2]
[321405393,1712148121839,-551.30767602,0.000248,2]
[321405394,1712148121862,-155.0,0.000248,2]
[321405395,1712148124539,208.08791572,0.000248,7]
[321405396,1712148156876,747.6094,0.0002237,2]
[321405397,1712148306725,150.33,0.00023841,2]
[321405398,1712148312263,187.66500826,0.00021923,2]
[321405399,1712148312285,75.94499174,0.00021923,2]
[321405400,1712148312485,263.61,0.00024187,2]
[321405401,1712148393480,265.49,0.00023841,2]
[321405402,1712148456668,200.0,0.00023841,2]
[321405425,1712148631626,-295.57981679,0.00024893,2]
[321405427,1712148631636,-155.0,0.00024894,2]
[321405429,1712148631646,-4001.41302617,0.00024896,2]
[321405431,1712148631657,-1905.39676909,0.00024898,2]
[321405433,1712148631666,-167.40732762,0.00024899,2]
[321405435,1712148631675,-212.63889439,0.00024899,2]
[321405437,1712148631684,-1190.0307,0.000249,2]
[321405439,1712148631693,-10149.65179986,0.000249,2]
[321405442,1712148631709,-8505.18712809,0.000249,2]
[321405446,1712148632768,-13201.2498,0.000249,2]
[321405450,1712148633340,1194.95500826,0.0002373,2]
[321405451,1712148633365,920.98499174,0.0002373,2]
[321405455,1712148637557,-5120.24499712,0.000249,2]
[321405456,1712148637569,-30473.89867493,0.000249,2]
[321405457,1712148637579,-384.6935,0.000249,2]
[321405458,1712148637588,-969.14682667,0.000249,2]
[321405459,1712148637598,-1116.26099841,0.000249,2]
[321405460,1712148637964,-600.0,0.000249,2]
[321405485,1712148641250,295.82660405,0.00023841,2]
[321405486,1712148641676,-462.41003542,0.000249,2]
[321405487,1712148641715,322.73789507,0.00023841,2]
[321405488,1712148641936,-1058.93345942,0.000249,2]
[321405518,1712148643474,-2769.25540675,0.000249,2]
[321405519,1712148643484,-152.14735187,0.000249,2]
[321405520,1712148643493,-2422.62544244,0.000249,2]
[321405521,1712148643502,-11993.85613965,0.000249,2]
[321405522,1712148643512,-318.432,0.0002498,2]
[321405523,1712148643521,-214.0,0.0002498,2]
[321405524,1712148643530,-206.0,0.0002498,2]
[321405525,1712148643539,-714.418,0.0002498,2]
[321405526,1712148643548,-255.0,0.0002498,2]
[321405527,1712148643557,-244.89777386,0.00024998,2]
[321405528,1712148643566,-156.21258437,0.00024998,2]
[321405529,1712148643576,-691.48895993,0.00024998,2]
[321405530,1712148643585,-1558.42395142,0.00024998,2]
[321405531,1712148643594,-207.7705328,0.00024998,2]
[321405532,1712148643603,-1597.24465068,0.00024998,2]
[321405533,1712148643612,-1638.39570081,0.00024998,2]
[321405534,1712148643621,-500.0,0.00024998,2]
[321405535,1712148643630,-387.46052945,0.00024998,2]
[321405536,1712148643639,-542.81568869,0.00024998,2]
[321405537,1712148643648,-312.92214396,0.00024998,2]
[321405538,1712148643657,-3865.0390704,0.00024998,2]
[321405539,1712148643669,-229.18127677,0.00024998,2]
[321405540,1712148643678,-165.5544226,0.00024998,2]
[321405541,1712148643687,-324.64529734,0.00024998,2]
[321405542,1712148643696,-1718.67865912,0.00024999,2]
[321405543,1712148643705,-91.79877448,0.00024999,2]
[321405544,1712148643716,-702.17219184,0.00024999,2]
[321405545,1712148643726,-5158.26142824,0.00025,2]
[321405546,1712148644332,-3.49079713,0.00025,2]
[321405566,1712148645819,-155.34,0.0002498,2]
[321405568,1712148645829,-3137.66,0.00025,2]
[321405574,1712148645882,-10257.33311011,0.00025,2]
[321405575,1712148645892,-50000.0,0.00025,2]
[321405576,1712148645901,-50000.0,0.00025,2]
[321405577,1712148645911,-50000.0,0.00025,2]
[321405578,1712148645922,-50000.0,0.00025,2]
[321405579,1712148645931,-50000.0,0.00025,2]
[321405580,1712148645941,-50000.0,0.00025,2]
[321405581,1712148645950,-499.99,0.00025,2]
[321405582,1712148645959,-49329.87897867,0.00025,2]
[321405583,1712148647936,460.45050914,0.00023841,2]
[321405584,1712148647959,315.28401101,0.00023841,2]
[321405585,1712148648100,741.2123,0.00024798,2]
[321405586,1712148651014,943.50368899,0.00022649,2]
[321405587,1712148651036,7.35856072,0.00022649,2]
[321405588,1712148651475,359.97775389,0.00023841,2]
[321405589,1712148666926,277.66368539,0.00022649,2]
[321405591,1712148724969,1724.84419486,0.000155,2]
[321405592,1712148828933,1648.21139587,0.0002,2]
[321405602,1712149372525,1250.0,0.00021,3]
[321405603,1712149373630,1300.0,0.00023,3]
[321405604,1712149382905,158.25,0.00038356,30]
[321405605,1712149383122,158.25,0.00038685,30]
[321405606,1712149383381,158.25,0.00039014,30]
[321405607,1712149383632,158.25,0.00039315,30]
[321405608,1712149383881,158.25,0.00039644,30]
[321405609,1712149384104,158.25,0.00039973,30]
[321405610,1712149447905,-295.57981679,0.0002145,2]
[321405611,1712149447926,-388.37,0.00021451,2]
[321405612,1712149447947,-675.82239829,0.00022649,2]
[321405613,1712149447967,-332.05147299,0.00023,2]
[321405614,1712149447988,-23900.0,0.00023042,2]
[321405615,1712149448008,-172.38,0.00023198,2]
[321405616,1712149448028,-250.0,0.0002322,2]
[321405617,1712149448050,-150.33,0.0002328,2]
[321405618,1712149448069,-200.0,0.00023304,2]
[321405619,1712149448090,-500.0,0.00023366,2]
[321405620,1712149448111,-5141.1071,0.0002339,2]
[321405621,1712149448132,-200.0,0.00023427,2]
[321405622,1712149448152,-500.0,0.00023439,2]
[321405623,1712149448172,-500.0,0.00023453,2]
[321405624,1712149448193,-250.0,0.0002349,2]
[321405625,1712149448214,-11309.21,0.0002349,2]
[321405626,1712149448237,-840.0,0.00023548,2]
[321405627,1712149448260,-157.24,0.00023573,2]
[321405628,1712149448281,-499.99,0.00023573,2]
[321405629,1712149448307,-555.94,0.00023665,2]
[321405630,1712149448327,-3181.97921193,0.00023692,2]
[321405631,1712149450096,-13125.33008545,0.00022999,2]
[321405632,1712149450119,-6761.02078807,0.00023692,2]
[321405633,1712149450140,-388.37,0.00023715,2]
[321405634,1712149450166,-4211.38131192,0.0002373,2]
[321405635,1712149450188,-150.0,0.00023732,2]
[321405636,1712149450209,-189.54,0.00023732,2]
[321405637,1712149450232,-1698.94,0.00023768,2]
[321405638,1712149450253,-1443.33,0.00023797,2]
[321405639,1712149450273,-554.13,0.00023797,2]
[321405640,1712149450295,-349.23,0.00023797,2]
[321405641,1712149450316,-9873.67,0.00023816,2]
[321405642,1712149450337,-497.43699793,0.00023818,2]
[321405643,1712149450359,-157.24,0.00023819,2]
[321405644,1712149450379,-152.65,0.00023819,2]
[321405645,1712149450400,-3089.67046308,0.00023998,2]
[321405646,1712149450420,-1685.45562289,0.00023999,2]
[321405647,1712149450444,-1063.49,0.00023999,2]
[321405648,1712149450465,-1008.14,0.00024004,2]
[321405649,1712149450486,-157.24,0.00024065,2]
[321405650,1712149450507,-157.24,0.0002431,2]
[321405651,1712149450530,-157.24,0.00024556,2]
[321405652,1712149450550,-2500.0,0.000248,2]
[321405653,1712149450570,-629.25473066,0.000248,2]
[321405654,1712149472122,-350.68759,0.0002475,2]
[321405655,1712149472144,-23755.11726934,0.000248,2]
[321405656,1712149472166,-354.19514066,0.000248,2]
[321405657,1712149502760,559.53030779,0.0004,30]
[321405658,1712149565370,400.14051639,0.00034898,120]
[321405659,1712149638137,-217.28613312,0.00023224,2]
[321405660,1712149638157,-268.80995107,0.00023225,2]
[321405661,1712149638178,-4462.24642716,0.00023225,2]
[321405662,1712149638197,-1134.54084762,0.00023225,2]
[321405663,1712149639465,-857.37351137,0.00023225,2]
[321405664,1712149643656,1000.0,0.0004,120]
[321405665,1712149651758,6417.50469841,0.0004,30]
[321405666,1712149656396,-537.36536672,0.00023223,2]
[321405667,1712149656417,-199.56493157,0.00023224,2]
[321405668,1712149656439,-1263.06970171,0.00023225,2]
[321405669,1712149656594,-1053.13594683,0.00023225,2]
[321405670,1712149656616,-150.0,0.00023228,2]
[321405671,1712149656637,-150.0,0.00023228,2]
[321405672,1712149686842,-2000.0,0.0002323,2]
[321405673,1712149692955,-2000.0,0.0002323,2]
[321405674,1712149699203,-2000.0,0.0002323,2]
[321405675,1712149706260,-2000.0,0.0002323,2]
[321405676,1712149711843,-2000.0,0.0002323,2]
[321405689,1712149831948,-268.80995107,0.00023403,2]
[321405690,1712149831958,-450.43164634,0.00023404,2]
[321405691,1712149831967,-177.04,0.00023557,2]
[321405692,1712149831977,-328.0,0.00023724,2]
[321405693,1712149831987,-1991.66205487,0.00023728,2]
[321405694,1712149832000,-639.84087267,0.00023728,2]
[321405695,1712149832126,-1830.74349962,0.00023728,2]
[321405696,1712149832137,-1264.08833127,0.00023729,2]
[321405697,1712149832147,-1952.13729907,0.0002373,2]
[321405698,1712149832158,-200.0,0.00023786,2]
[321405699,1712149832169,-150.0,0.00023888,2]
[321405700,1712149832179,-168.52,0.00023898,2]
[321405701,1712149832190,-961.88,0.0002391,2]
[321405702,1712149832199,-197.5,0.00023917,2]
[321405703,1712149832209,-1227.25,0.00023936,2]
[321405704,1712149832219,-201.85,0.0002396,2]
[321405705,1712149832229,-197.5,0.00023983,2]
[321405706,1712149832240,-197.5,0.00024048,2]
[321405707,1712149832249,-197.5,0.00024114,2]
[321405708,1712149832259,-197.5,0.0002418,2]
[321405709,1712149832269,-197.5,0.00024245,2]
[321405710,1712149832279,-197.5,0.00024311,2]
[321405711,1712149832288,-197.5,0.00024376,2]
[321405712,1712149832297,-175.72,0.00024393,2]
[321405714,1712149832306,-644.17906747,0.000244,2]
[321405716,1712149832316,-197.5,0.00024442,2]
[321405718,1712149832327,-150.0,0.000245,2]
[321405720,1712149832337,-197.5,0.00024508,2]
[321405722,1712149832345,-197.5,0.00024573,2]
[321405724,1712149832354,-752.04923796,0.000246,2]
[321405726,1712149832364,-197.5,0.00024639,2]
[321405729,1712149832374,-150.0,0.00024679,2]
[321405732,1712149832383,-197.5,0.00024704,2]
[321405735,1712149832392,-197.5,0.0002477,2]
[321405738,1712149832402,-1683.09225934,0.000248,2]
[321405741,1712149832413,-1000.0,0.000248,2]
[321405744,1712149832424,-787.04249978,0.000248,2]
[321405748,1712149832434,-516.39630516,0.000248,2]
[321405750,1712149832444,-787.04249973,0.00024811,2]
[321405752,1712149832454,-516.39630513,0.00024811,2]
[321405754,1712149832463,-787.04249973,0.00024822,2]
[321405756,1712149832473,-516.39630513,0.00024822,2]
[321405758,1712149832482,-787.04249973,0.00024833,2]
[321405760,1712149832491,-516.39630513,0.00024833,2]
[321405762,1712149832501,-197.5,0.00024836,2]
[321405764,1712149832512,-787.04249973,0.00024844,2]
[321405766,1712149832522,-787.04249973,0.00024856,2]
[321405768,1712149832532,-787.04249973,0.00024867,2]
[321405770,1712149832541,-787.04249973,0.00024878,2]
[321405772,1712149832552,-787.04249973,0.00024889,2]
[321405774,1712149832563,-167.40732762,0.00024898,2]
[321405776,1712149832573,-212.63889439,0.00024898,2]
[321405778,1712149832582,-294.62721196,0.00024898,2]
[321405780,1712149832592,-184.28060754,0.00024898,2]
[321405782,1712149832603,-1886.06704094,0.00024898,2]
[321405783,1712149832613,-548.38561992,0.00024898,2]
[321405786,1712149832623,-477.97762676,0.00024898,2]
[321405788,1712149832634,-221.42655598,0.00024898,2]
[321405790,1712149832644,-193.24208202,0.00024898,2]
[321405791,1712149832654,-267.61686154,0.00024898,2]
[321405794,1712149832664,-30224.04970634,0.00024898,2]
[321405795,1712149832676,-2171.05524251,0.00024898,2]
[321405797,1712149832686,-5767.05159151,0.00024898,2]
[321405799,1712149832697,-155.53018512,0.00024898,2]
[321405801,1712149832706,-11948.98014463,0.00024898,2]
[321405803,1712149832716,-284.46767156,0.00024898,2]
[321405805,1712149832726,-165.95741772,0.00024898,2]
[321405807,1712149832735,-578.93933236,0.00024898,2]
[321405809,1712149832745,-1000.0,0.000249,2]
[321405811,1712149832755,-39083.2295,0.000249,2]
[321405813,1712149832765,-760.3957,0.000249,2]
[321405815,1712149832777,-100000.0,0.000249,2]
[321405817,1712149832789,-888.38459105,0.000249,2]
[321405819,1712149832799,-1000.0,0.000249,2]
[321405821,1712149832808,-151.97262332,0.000249,2]
[321405823,1712149832817,-1163.23462155,0.000249,2]
[321405825,1712149832827,-787.04249973,0.000249,2]
[321405828,1712149832837,-440.56296628,0.000249,2]
[321405829,1712149832848,-316.80964574,0.000249,2]
[321405832,1712149832858,-634.21292242,0.000249,2]
[321405833,1712149832868,-2113.66752084,0.000249,2]
[321405836,1712149832880,-438.5631758,0.000249,9]
[321405837,1712149832891,-197.5,0.00024901,2]
[321405840,1712149832901,-197.5,0.00024967,2]
[321405842,1712149832912,-214.0,0.0002498,2]
[321405844,1712149832925,-206.0,0.0002498,2]
[321405845,1712149832937,-11518.15976472,0.00024997,2]
[321405847,1712149832947,-943.1640719,0.00024997,2]
[321405848,1712149832956,-3299.1561261,0.00024997,2]
[321405849,1712149832966,-114064.945352,0.00024997,2]
[321405850,1712149832975,-400.0,0.00024998,2]
[321405851,1712149832985,-13593.24005819,0.00024998,2]
[321405852,1712149832996,-793.97096632,0.00024999,2]
[321405853,1712149833005,-300.0,0.00024999,2]
[321405854,1712149833015,-300.0,0.00024999,2]
[321405855,1712149833024,-300.0,0.00024999,2]
[321405856,1712149833033,-300.0,0.00024999,2]
[321405857,1712149833043,-300.0,0.00024999,2]
[321405858,1712149833054,-300.0,0.00024999,2]
[321405859,1712149833063,-300.0,0.00024999,2]
[321405860,1712149833073,-300.0,0.00024999,2]
[321405861,1712149833082,-300.0,0.00024999,2]
[321405862,1712149833093,-303.5612234,0.00024999,2]
[321405863,1712149833102,-50000.0,0.00025,2]
[321405864,1712149833112,-50000.0,0.00025,2]
[321405865,1712149833122,-193733.09229621,0.00025,2]
[321405866,1712149833133,-28601.57131814,0.00025,2]
[321405870,1712149837934,-481.03512514,0.0002391,2]
[321405871,1712149837947,-18.95487486,0.0002391,2]
[321405872,1712149837958,-516.39630513,0.00024844,2]
[321405873,1712149837969,-52.04882001,0.00024999,2]
[321405874,1712149838044,-702.22359799,0.00024999,2]
[321405875,1712149838053,-5900.476402,0.00025,2]
[321405876,1712149838102,-2881.6167121,0.00025,2]
[321405877,1712149838116,-5992.1262398,0.00025,2]
[321405890,1712149839924,-280.86451639,0.000248,2]
[321405895,1712149841253,938.37870965,0.0002323,2]
[321405905,1712149842834,-719.13548361,0.000248,2]
[321405906,1712149842843,-516.39630513,0.00024856,2]
[321405907,1712149842852,-716.5587971,0.00024999,2]
[321405908,1712149842861,-8517.28190312,0.00025,2]
[321405909,1712149843052,-14759.54209474,0.00025,2]
[321405910,1712149843063,-11890.58129865,0.00025,2]
[321405911,1712149843111,-3164.16339422,0.00025,2]
[321405912,1712149843277,-16074.98061667,0.00025,2]
[321405913,1712149843288,-8587.18117911,0.00025,2]
[321405925,1712149845814,-516.39630513,0.00024867,2]
[321405927,1712149845824,-147370.7985419,0.00025,2]
[321405929,1712149845835,-2841.85890817,0.00025,2]
[321405931,1712149845845,-155.0,0.00025,2]
[321405933,1712149845854,-606.29,0.00025,2]
[321405935,1712149845865,-163.28,0.00025,2]
[321405937,1712149845875,-1304062.96869794,0.00025,2]
[321405942,1712149856747,2191.85,0.000251,10]
[321405943,1712149891912,387.97,0.00022608,2]
[321405944,1712149939475,206.1,0.00035826,120]
[321405945,1712150176617,25000.0,0.0004,30]
[321405946,1712150192273,25000.0,0.0004,30]
[321405947,1712150244301,25000.0,0.0004,30]
[321405948,1712150385948,299.72997,0.00024999,10]
[321405949,1712150580294,368.57,0.00021459,2]
[321405950,1712150767800,-250.0,0.0002335,2]
[321405951,1712150767823,-150.0,0.00023363,2]
[321405952,1712150767844,-870.5,0.00023373,2]
[321405953,1712150767865,-535.08,0.00023376,2]
[321405954,1712150767887,-194.42,0.00023394,2]
[321405955,1712150770462,-2000.0,0.00023394,2]
[321405956,1712150771103,-2000.0,0.00023394,2]
[321405957,1712150771262,-2000.0,0.00023394,2]
[321405958,1712150771624,-2000.0,0.00023394,2]
[321405959,1712150772459,-2000.0,0.00023394,2]
[321405960,1712150772741,-2000.0,0.00023394,2]
[321405961,1712150773128,-2000.0,0.00023394,2]
[321405962,1712150773477,-2000.0,0.00023394,2]
[321405963,1712150773807,-2000.0,0.00023394,2]
[321405964,1712150774212,-2000.0,0.00023394,2]
[321405965,1712150774529,-2000.0,0.00023394,2]
[321405966,1712150774860,-1705.58,0.00023394,2]
[321405967,1712150839159,-381.13767216,0.00023394,2]
[321405968,1712150897398,4302.26899337,0.00039,30]
[321405969,1712150931212,4165.49198681,0.0002,2]
[321405972,1712151032051,-494.9685,0.00023276,2]
[321405973,1712151032279,-295.3109,0.00023276,2]
[321405979,1712151032501,-1768.95609136,0.00023276,2]
[321405982,1712151032519,-892.72490764,0.00023276,2]
[321405984,1712151032528,-2694.71509236,0.00023393,2]
[321405989,1712151032562,-13037.72561787,0.00023393,2]
[321405991,1712151032569,-857.18857717,0.00023394,2]
[321405993,1712151032576,-1176.75492891,0.00023394,2]
[321405995,1712151032584,-457.03096424,0.00023394,2]
[321406095,1712151038035,-881.74635463,0.00023394,2]
[321406096,1712151038045,-863.44420511,0.00023394,2]
[321406097,1712151038055,-616.9779047,0.00023394,2]
[321406098,1712151038064,-23923.08753556,0.00023394,2]
[321406099,1712151038148,-5249.03513533,0.00023394,2]
[321406100,1712151038158,-10937.22300352,0.00023394,2]
[321406101,1712151038167,-250.0,0.00023394,2]
[321406102,1712151038177,-262.4,0.00023397,2]
[321406103,1712151038186,-640.58,0.00023402,2]
[321406104,1712151038196,-1365.52,0.00023413,2]
[321406105,1712151038205,-500.0,0.00023416,2]
[321406106,1712151038214,-282.25,0.00023434,2]
[321406107,1712151038224,-6294.92,0.00023434,2]
[321406108,1712151038233,-7919.67078135,0.0002345,2]
[321406109,1712151038454,-1330.99921865,0.0002345,2]
[321406110,1712151038466,-888.98,0.0002345,2]
[321406111,1712151038476,-737.6,0.0002351,2]
[321406112,1712151038486,-979.32,0.00023537,2]
[321406114,1712151038495,-499.99,0.00023537,2]
[321406116,1712151038505,-197.5,0.00023583,2]
[321406118,1712151038514,-368.57,0.00023723,2]
[321406119,1712151038523,-395.28507519,0.00023748,2]
[321406120,1712151038533,-206.1,0.00023884,2]
[321406121,1712151038543,-175.72,0.00024013,2]
[321406122,1712151038553,-924.23,0.00024055,2]
[321406123,1712151038562,-408.61,0.00024055,2]
[321406124,1712151038572,-1648.3787,0.00024072,2]
[321406125,1712151038581,-409.96,0.00024171,2]
[321406126,1712151038591,-409.96,0.00024178,2]
[321406128,1712151038601,-409.96,0.00024184,2]
[321406130,1712151038610,-409.96,0.0002419,2]
[321406131,1712151038620,-416.91,0.00024192,2]
[321406132,1712151038633,-416.91,0.00024192,2]
[321406133,1712151038643,-412.95,0.00024192,2]
[321406134,1712151038653,-409.96,0.00024197,2]
[321406135,1712151038663,-197.5,0.00024198,2]
[321406136,1712151038675,-409.96,0.00024203,2]
[321406137,1712151038684,-409.96,0.0002421,2]
[321406138,1712151038695,-409.96,0.00024216,2]
[321406139,1712151038708,-409.96,0.00024222,2]
[321406140,1712151038718,-409.96,0.00024229,2]
[321406141,1712151038728,-409.96,0.00024235,2]
[321406142,1712151038738,-409.96,0.00024241,2]
[321406143,1712151038747,-409.96,0.00024248,2]
[321406144,1712151038757,-409.96,0.00024254,2]
[321406145,1712151038767,-409.96,0.0002426,2]
[321406146,1712151038776,-409.96,0.00024267,2]
[321406147,1712151038785,-409.96,0.00024273,2]
[321406148,1712151038795,-150.0,0.00024278,2]
[321406149,1712151038804,-516.76,0.00024278,2]
[321406150,1712151038815,-346.82,0.00024278,2]
[321406151,1712151038824,-150.0,0.00024278,2]
[321406152,1712151038833,-409.96,0.00024279,2]
[321406153,1712151038842,-409.96,0.00024286,2]
[321406154,1712151038852,-409.96,0.00024292,2]
[321406155,1712151038861,-350.68759,0.0002475,2]
[321406156,1712151038871,-197.5,0.00024812,2]
[321406157,1712151038881,-350.68759,0.0002482,2]
[321406158,1712151038890,-328.1504,0.00024875,2]
[321406159,1712151038900,-2460.91001988,0.00024898,2]
[321406160,1712151038909,-837.8759,0.000249,2]
[321406161,1712151038919,-1000.0,0.000249,2]
[321406162,1712151038928,-1753.9713,0.000249,2]
[321406163,1712151038938,-1000.0,0.000249,2]
[321406164,1712151038947,-15205.01193615,0.000249,2]
[321406165,1712151038964,-512.64686385,0.000249,2]
[321406166,1712151038973,-1190.0307,0.000249,2]
[321406167,1712151038983,-1868.42269957,0.000249,2]
[321406168,1712151038992,-183.17408248,0.000249,2]